fUST/lending_fUST_20250520
["ID","MTS","AMOUNT","RATE_DAILY","PERIOD"]
[361720758,1747726249752,-430.0,0.00016712,2]
[361720759,1747726249762,-430.0,0.00016712,2]
[361720760,1747726249772,-210.790357,0.00016712,2]
[361720761,1747726249782,-430.0,0.00016712,2]
[361720762,1747726249792,-430.0,0.00016712,2]
[361720763,1747726249802,-430.0,0.00016712,2]
[361720764,1747726249811,-903.95,0.00016712,2]
[361720765,1747726249821,-430.0,0.00016712,2]
[361720766,1747726249831,-838.62,0.00016712,2]
[361720767,1747726249840,-452.73,0.00016712,2]
[361720768,1747726249849,-447.41,0.00016712,2]
[361720769,1747726249859,-375.29681802,0.00016712,2]
[361720770,1747726249869,-430.0,0.00016712,2]
[361720771,1747726249879,-533.98257197,0.00016712,2]
[361720772,1747726249889,-453.54,0.00016712,2]
[361720773,1747726249898,-672.47,0.00016712,2]
[361720774,1747726249908,-430.0,0.00016712,2]
[361720775,1747726249918,-430.0,0.00016712,2]
[361720776,1747726249927,-450.0,0.00016712,2]
[361720777,1747726249937,-163.06617706,0.00016712,2]
[361720778,1747726249947,-430.0,0.00016712,2]
[361720779,1747726249957,-430.0,0.00016712,2]
[361720780,1747726249966,-430.0,0.00016712,2]
[361720781,1747726249976,-430.0,0.00016712,2]
[361720782,1747726249985,-536.2,0.00016712,2]
[361720783,1747726249994,-430.0,0.00016712,2]
[361720784,1747726250004,-430.0,0.00016712,2]
[361720785,1747726250013,-529.07,0.00016712,2]
[361720786,1747726250022,-430.0,0.00016712,2]
[361720787,1747726250032,-430.0,0.00016712,2]
[361720788,1747726250043,-430.0,0.00016712,2]
[361720789,1747726250052,-430.0,0.00016712,2]
[361720790,1747726250061,-430.0,0.00016712,2]
[361720791,1747726250071,-430.0,0.00016712,2]
[361720792,1747726250080,-430.0,0.00016712,2]
[361720793,1747726250089,-430.0,0.00016712,2]
[361720794,1747726250099,-430.0,0.00016712,2]
[361720795,1747726250109,-295.40745137,0.00016712,2]
[361720796,1747726250118,-430.0,0.00016712,2]
[361720797,1747726250127,-430.0,0.00016712,2]
[361720798,1747726250136,-779.24,0.00016712,2]
[361720799,1747726250146,-430.0,0.00016712,2]
[361720800,1747726250155,-284.86729303,0.00016712,2]
[361720801,1747726250164,-430.0,0.00016712,2]
[361720802,1747726250174,-430.0,0.00016712,2]
[361720803,1747726250183,-430.0,0.00016712,2]
[361720804,1747726250193,-430.0,0.00016712,2]
[361720805,1747726250202,-457.69,0.00016712,2]
[361720806,1747726250211,-469.51,0.00016712,2]
[361720807,1747726250221,-430.0,0.00016712,2]
[361720808,1747726250230,-430.0,0.00016712,2]
[361720809,1747726250239,-3898.23,0.00016712,2]
[361720810,1747726250248,-430.0,0.00016712,2]
[361720811,1747726250257,-430.0,0.00016712,2]
[361720812,1747726250266,-904.38,0.00016712,2]
[361720813,1747726250275,-572.44,0.00016712,2]
[361720814,1747726250285,-2342.46,0.00016712,2]
[361720815,1747726250294,-430.0,0.00016712,2]
[361720816,1747726250303,-430.0,0.00016712,2]
[361720817,1747726250312,-430.0,0.00016712,2]
[361720818,1747726250321,-430.0,0.00016712,2]
[361720819,1747726250331,-430.0,0.00016712,2]
[361720820,1747726250340,-699.11,0.00016712,2]
[361720821,1747726250350,-693.84,0.00016712,2]
[361720822,1747726250359,-434.48,0.00016712,2]
[361720823,1747726250368,-3549.5,0.00016712,2]
[361720824,1747726250378,-430.0,0.00016712,2]
[361720825,1747726250387,-430.0,0.00016712,2]
[361720826,1747726250396,-1026.55,0.00016712,2]
[361720827,1747726250405,-620.09,0.00016712,2]
[361720828,1747726250414,-430.0,0.00016712,2]
[361720829,1747726250424,-430.0,0.00016712,2]
[361720830,1747726250433,-1385.9,0.00016712,2]
[361720831,1747726250443,-430.0,0.00016712,2]
[361720832,1747726250453,-430.0,0.00016712,2]
[361720833,1747726250462,-430.0,0.00016712,2]
[361720834,1747726250471,-430.0,0.00016712,2]
[361720835,1747726250481,-778.43,0.00016712,2]
[361720836,1747726250491,-1525.25,0.00016712,2]
[361720837,1747726250500,-430.0,0.00016712,2]
[361720838,1747726250510,-1126.29,0.00016712,2]
[361720839,1747726250520,-430.0,0.00016712,2]
[361720840,1747726250530,-430.0,0.00016712,2]
[361720841,1747726250539,-1574.53,0.00016712,2]
[361720842,1747726250549,-509.79,0.00016712,2]
[361720843,1747726250559,-430.0,0.00016712,2]
[361720844,1747726250568,-430.0,0.00016712,2]
[361720845,1747726250578,-677.62,0.00016712,2]
[361720846,1747726250588,-430.0,0.00016712,2]
[361720847,1747726250597,-461.32,0.00016712,2]
[361720848,1747726250607,-430.0,0.00016712,2]
[361720849,1747726250619,-540.82,0.00016712,2]
[361720850,1747726250628,-553.58,0.00016712,2]
[361720851,1747726250638,-912.02,0.00016712,2]
[361720852,1747726250648,-676.49,0.00016712,2]
[361720853,1747726250658,-719.22,0.00016712,2]
[361720854,1747726250667,-1376.67,0.00016712,2]
[361720855,1747726250678,-991.42,0.00016712,2]
[361720856,1747726250688,-735.67,0.00016712,2]
[361720857,1747726250701,-949.82,0.00016712,2]
[361720858,1747726250711,-430.0,0.00016712,2]
[361720859,1747726250721,-1450.2,0.00016712,2]
[361720860,1747726250730,-1003.33,0.00016712,2]
[361720861,1747726250740,-2029.9,0.00016712,2]
[361720862,1747726250751,-5228.35,0.00016712,2]
[361720863,1747726250762,-1398.42,0.00016712,2]
[361720864,1747726250771,-608.78,0.00016712,2]
[361720865,1747726250781,-430.0,0.00016712,2]
[361720866,1747726250791,-430.0,0.00016712,2]
[361720867,1747726250801,-430.0,0.00016712,2]
[361720868,1747726250810,-1039.05,0.00016712,2]
[361720869,1747726250821,-576.05,0.00016712,2]
[361720870,1747726250831,-430.0,0.00016712,2]
[361720871,1747726250840,-633.6,0.00016712,2]
[361720872,1747726250850,-430.0,0.00016712,2]
[361720873,1747726250860,-5147.85,0.00016712,2]
[361720874,1747726250869,-430.0,0.00016712,2]
[361720875,1747726251025,-430.0,0.00016712,2]
[361720876,1747726251035,-619.75,0.00016712,2]
[361720877,1747726251046,-1172.11,0.00016712,2]
[361720878,1747726251057,-949.33,0.00016712,2]
[361720879,1747726251066,-2527.38,0.00016712,2]
[361720880,1747726251076,-525.38,0.00016712,2]
[361720881,1747726251085,-430.0,0.00016712,2]
[361720882,1747726251095,-629.74,0.00016712,2]
[361720883,1747726251104,-871.44,0.00016712,2]
[361720884,1747726251113,-430.0,0.00016712,2]
[361720885,1747726251122,-1124.72,0.00016712,2]
[361720886,1747726251132,-430.0,0.00016712,2]
[361720887,1747726251142,-1012.48,0.00016712,2]
[361720888,1747726251151,-842.05,0.00016712,2]
[361720889,1747726251161,-499.24,0.00016712,2]
[361720890,1747726251170,-1902.23,0.00016712,2]
[361720891,1747726251180,-430.0,0.00016712,2]
[361720892,1747726251190,-2303.22,0.00016712,2]
[361720893,1747726251199,-430.0,0.00016712,2]
[361720894,1747726251208,-430.0,0.00016712,2]
[361720895,1747726251218,-588.16,0.00016712,2]
[361720896,1747726251227,-430.0,0.00016712,2]
[361720897,1747726251237,-640.4,0.00016712,2]
[361720898,1747726251246,-455.76,0.00016712,2]
[361720899,1747726251255,-1549.12,0.00016712,2]
[361720900,1747726251265,-1121.60046737,0.00016749,2]
[361720901,1747726251274,-160.0,0.00016761,2]
[361720902,1747726251283,-160.0,0.00016761,2]
[361720903,1747726251292,-160.0,0.00016761,2]
[361720904,1747726251302,-998.82236359,0.00016761,2]
[361720905,1747726251311,-212.38718278,0.00016761,2]
[361720906,1747726251321,-12522.43177565,0.00016761,2]
[361720907,1747726251893,227.451441,0.00013699,2]
[361720908,1747726303126,7493.0,0.00015807,2]
[361720911,1747726449583,199.493777,0.00027397,120]
[361720912,1747726528163,1498.77,0.00027397,120]
[361720988,1747726884070,625.3188,0.00027397,120]
[361720989,1747726884994,761.41,0.00027397,120]
[361720990,1747726909842,181.0,0.00016,10]
[361720991,1747726970675,10014.0,0.00025011,120]
[361721013,1747727391433,216.078868,0.00013699,2]
[361721065,1747727432425,-154.83999223,0.00016328,2]
[361721067,1747727432435,-448.64018698,0.00016338,2]
[361721069,1747727432444,-300.0,0.00016399,2]
[361721071,1747727432454,-300.0,0.00016399,2]
[361721073,1747727432463,-33387.0915712,0.000164,2]
[361721075,1747727432473,-367.26,0.00016428,3]
[361721077,1747727432482,-183.63,0.00016428,3]
[361721079,1747727432491,-550.91,0.00016428,3]
[361721080,1747727432501,-151.0,0.00016428,2]
[361721081,1747727432510,-209.84858221,0.00016428,2]
[361721082,1747727432520,-1000.0,0.00016438,2]
[361721083,1747727432530,-430.0,0.00016438,2]
[361721084,1747727432539,-430.0,0.00016438,2]
[361721085,1747727432548,-430.0,0.00016438,2]
[361721086,1747727432557,-438.09,0.00016438,2]
[361721087,1747727432566,-199.77257741,0.00016438,2]
[361721088,1747727432576,-430.0,0.00016438,2]
[361721089,1747727432585,-430.0,0.00016438,2]
[361721090,1747727432594,-430.0,0.00016438,2]
[361721091,1747727432603,-340.0,0.00016438,2]
[361721092,1747727432613,-515.64,0.00016438,2]
[361721093,1747727432623,-430.0,0.00016438,2]
[361721094,1747727432632,-430.0,0.00016438,2]
[361721095,1747727432642,-430.0,0.00016438,2]
[361721096,1747727432651,-430.0,0.00016438,2]
[361721097,1747727432661,-448.15,0.00016438,2]
[361721098,1747727432670,-430.0,0.00016438,2]
[361721099,1747727432681,-430.0,0.00016438,2]
[361721100,1747727432690,-430.0,0.00016438,2]
[361721101,1747727432699,-430.0,0.00016438,2]
[361721102,1747727432709,-430.0,0.00016438,2]
[361721103,1747727432718,-430.0,0.00016438,2]
[361721104,1747727432727,-430.0,0.00016438,2]
[361721105,1747727432737,-430.0,0.00016438,2]
[361721106,1747727432746,-430.0,0.00016438,2]
[361721107,1747727432756,-446.26,0.00016438,2]
[361721108,1747727432766,-430.0,0.00016438,2]
[361721109,1747727432775,-38.80274274,0.00016438,2]
[361721110,1747727432788,-508.14306788,0.00016438,2]
[361721155,1747727440576,-500.0,0.00016435,2]
[361721158,1747727440585,-27.69100549,0.00016435,2]
[361722272,1747727456179,11822.702102,0.000156,2]
[361722495,1747727537945,160.0,0.00025011,30]
[361722498,1747727632807,181.0,0.00016,2]
[361722499,1747727690001,199.493777,0.00027397,120]
[361722500,1747727882437,10000.0,0.00016,2]
[361722501,1747728032206,200.0,0.00024307,120]
[361722502,1747728096678,1000.0,0.00016,2]
[361722504,1747728205598,181.0,0.00015432,2]
[361722505,1747728365211,192.0,0.00024991,31]
[361722507,1747728499508,205.274924,0.00013699,2]
[361722548,1747728632703,-266.45,0.00016289,2]
[361722550,1747728632712,-154.83999223,0.00016332,2]
[361722551,1747728632722,-358.91214956,0.00016338,2]
[361722553,1747728632731,-439.54099336,0.00016396,2]
[361722555,1747728632743,-561.45900664,0.00016396,2]
[361722556,1747728632752,-66.99099336,0.00016425,2]
[361722582,1747728638395,-881.21949964,0.00016425,2]
[361722584,1747728638405,-550.89,0.00016428,3]
[361722586,1747728638415,-550.89,0.00016428,3]
[361722588,1747728638424,-300.0,0.00016431,2]
[361722590,1747728638434,-300.0,0.00016431,2]
[361722592,1747728638444,-500.0,0.00016431,2]
[361722594,1747728638454,-500.0,0.00016431,2]
[361722596,1747728638463,-500.0,0.00016431,2]
[361722598,1747728638473,-500.0,0.00016431,2]
[361722600,1747728638482,-130.54950286,0.00016431,2]
[361722603,1747728638494,-414.90971596,0.00016431,2]
[361722606,1747728638504,-388.22973785,0.00016431,2]
[361722608,1747728638514,-976.04833524,0.00016431,2]
[361722610,1747728638527,-451.08746306,0.00016431,2]
[361722612,1747728638536,-500.0,0.00016431,2]
[361722614,1747728638546,-500.0,0.00016431,2]
[361722616,1747728638555,-120.53192439,0.00016431,2]
[361722620,1747728638582,-379.46807561,0.00016431,2]
[361722622,1747728638591,-976.04833524,0.00016431,2]
[361722624,1747728638602,-500.0,0.00016431,2]
[361722625,1747728638612,-500.0,0.00016431,2]
[361722628,1747728638622,-500.0,0.00016431,2]
[361722630,1747728638632,-976.04833524,0.00016431,2]
[361722632,1747728638642,-500.0,0.00016431,2]
[361722634,1747728638651,-324.72600879,0.00016431,2]
[361722636,1747728638660,-976.04833524,0.00016431,2]
[361722638,1747728638670,-500.0,0.00016431,2]
[361722640,1747728638679,-976.04833524,0.00016431,2]
[361722641,1747728638688,-976.04833524,0.00016431,2]
[361722644,1747728638698,-500.0,0.00016431,2]
[361722646,1747728638708,-976.04833524,0.00016431,2]
[361722648,1747728638717,-500.0,0.00016431,2]
[361722650,1747728638727,-976.04833524,0.00016431,2]
[361722652,1747728638736,-500.0,0.00016431,2]
[361722654,1747728638745,-500.0,0.00016431,2]
[361722655,1747728638755,-976.04833524,0.00016431,2]
[361722657,1747728638764,-500.0,0.00016431,2]
[361722659,1747728638773,-500.0,0.00016431,2]
[361722661,1747728638782,-976.04833524,0.00016431,2]
[361722663,1747728638793,-500.0,0.00016431,2]
[361722666,1747728638804,-976.04833524,0.00016431,2]
[361722668,1747728638813,-976.04833524,0.00016431,2]
[361722670,1747728638822,-500.0,0.00016431,2]
[361722671,1747728638832,-976.04833524,0.00016431,2]
[361722673,1747728638841,-500.0,0.00016431,2]
[361722675,1747728638850,-976.04833524,0.00016431,2]
[361722677,1747728638859,-959.69846022,0.00016431,2]
[361722679,1747728638871,-16.34987502,0.00016431,2]
[361722681,1747728638880,-976.04833524,0.00016431,2]
[361722683,1747728638889,-976.04833524,0.00016431,2]
[361722685,1747728638899,-351.98490514,0.00016431,2]
[361722687,1747728638910,-624.0634301,0.00016431,2]
[361722689,1747728638919,-976.04833524,0.00016431,2]
[361722691,1747728638929,-976.04833524,0.00016431,2]
[361722693,1747728638938,-976.04833524,0.00016431,2]
[361722695,1747728638947,-976.04833524,0.00016431,2]
[361722697,1747728638956,-684.01742066,0.00016431,2]
[361722791,1747728640664,-292.03091458,0.00016431,2]
[361722792,1747728640674,-976.04833524,0.00016431,2]
[361722793,1747728640684,-976.04833524,0.00016431,2]
[361722794,1747728640694,-976.04833524,0.00016431,2]
[361722795,1747728640703,-976.04833524,0.00016431,2]
[361722796,1747728640713,-976.04833524,0.00016431,2]
[361722797,1747728640723,-976.04833524,0.00016431,2]
[361722798,1747728640732,-976.04833524,0.00016431,2]
[361722799,1747728640741,-976.04833524,0.00016431,2]
[361722800,1747728640751,-976.04833524,0.00016431,2]
[361722801,1747728640760,-976.04833524,0.00016431,2]
[361722802,1747728640770,-976.04833524,0.00016431,2]
[361722803,1747728640780,-976.04833524,0.00016431,2]
[361722804,1747728640789,-976.04833524,0.00016431,2]
[361722805,1747728640799,-976.04833524,0.00016431,2]
[361722806,1747728640809,-976.04833524,0.00016431,2]
[361722807,1747728640818,-873.44260403,0.00016431,2]
[361722808,1747728640831,-102.60573121,0.00016431,2]
[361722809,1747728640840,-976.04833524,0.00016431,2]
[361722810,1747728640850,-778.18785811,0.00016431,2]
[361722850,1747728643537,-1120.0,0.00016267,2]
[361722852,1747728643548,-197.86047713,0.00016431,2]
[361722854,1747728643559,-976.04833524,0.00016431,2]
[361722856,1747728643569,-976.04833524,0.00016431,2]
[361722858,1747728643579,-976.04833524,0.00016431,2]
[361722860,1747728643589,-976.04833524,0.00016431,2]
[361722862,1747728643599,-976.04833524,0.00016431,2]
[361722864,1747728643609,-976.04833524,0.00016431,2]
[361722866,1747728643619,-976.04833524,0.00016431,2]
[361722868,1747728643629,-976.04833524,0.00016431,2]
[361722870,1747728643638,-270.83764316,0.00016432,3]
[361722872,1747728643648,-10424.49067539,0.00016432,2]
[361722874,1747728643658,-151.0,0.00016433,2]
[361722876,1747728643668,-151.0,0.00016433,2]
[361722878,1747728643677,-3883.770651,0.00016434,2]
[361722880,1747728643687,-3883.770651,0.00016434,2]
[361722882,1747728643696,-3883.770651,0.00016434,2]
[361722884,1747728643705,-3883.770651,0.00016434,2]
[361722886,1747728643715,-608.033558,0.00016435,2]
[361722888,1747728643724,-608.033558,0.00016435,2]
[361722890,1747728643734,-608.033558,0.00016435,2]
[361722892,1747728643743,-151.0,0.00016435,2]
[361722894,1747728643752,-151.0,0.00016435,2]
[361722896,1747728643762,-151.0,0.00016435,2]
[361722898,1747728643771,-608.033558,0.00016435,2]
[361722900,1747728643781,-608.033558,0.00016435,2]
[361722901,1747728643791,-402.20032377,0.00016435,2]
[361723409,1747728903145,755.0,0.00012,2]
[361723410,1747729010436,5000.0,0.00016,2]
[361723411,1747729031881,2543.60510101,0.0002499,120]
[361723412,1747729213491,5000.0,0.00016,2]
[361723413,1747729229917,5000.0,0.00016,2]
[361723414,1747729245273,5000.0,0.00016,2]
[361723415,1747729261174,2013.12805032,0.00016,2]
[361723416,1747729356030,2767.3049082,0.00015299,2]
[361723417,1747729416798,653.00730596,0.00015922,2]
[361723431,1747729542132,555.0,0.00027397,120]
[361723432,1747729553617,555.0,0.00027397,120]
[361723439,1747729556817,2174.51286882,0.00025008,30]
[361723441,1747729586054,195.011177,0.00013699,2]
[361723449,1747729723211,452.999999,0.0002,120]
[361723452,1747729764309,1120.0,0.00015291,2]
[361723453,1747729770098,250.0,0.00015291,2]
[361723454,1747729795554,120442.4382143,0.00016,3]
[361723505,1747729832666,-851.02316454,0.00016197,2]
[361723507,1747729832679,-292.29272535,0.00016197,2]
[361723509,1747729832689,-1143.31588988,0.00016241,2]
[361723511,1747729832698,-1143.31588988,0.00016285,2]
[361723513,1747729832709,-453.44,0.0001629,3]
[361723515,1747729832718,-226.72,0.0001629,3]
[361723517,1747729832728,-680.17,0.0001629,3]
[361723519,1747729832738,-300.0,0.00016294,2]
[361723521,1747729832747,-300.0,0.00016294,2]
[361723523,1747729832757,-300.0,0.00016294,2]
[361723525,1747729832766,-1200.0,0.00016294,2]
[361723526,1747729832776,-270.83764316,0.00016296,3]
[361723528,1747729832785,-5212.2453377,0.00016296,2]
[361723529,1747729832794,-151.0,0.00016296,2]
[361723531,1747729832805,-179.728578,0.00016296,2]
[361723533,1747729832814,-1539.44756,0.00016296,2]
[361723534,1747729832823,-1539.44756,0.00016296,2]
[361723535,1747729832833,-1539.44756,0.00016296,2]
[361723537,1747729832842,-1539.44756,0.00016296,2]
[361723538,1747729832851,-151.0,0.00016296,2]
[361723540,1747729832860,-151.0,0.00016296,2]
[361723542,1747729832869,-151.0,0.00016297,2]
[361723544,1747729832878,-151.0,0.00016297,2]
[361723546,1747729832888,-151.0,0.00016297,2]
[361723548,1747729832897,-151.0,0.00016297,2]
[361723549,1747729832906,-263.936431,0.00016297,2]
[361723550,1747729832916,-151.0,0.00016298,2]
[361723551,1747729832925,-151.0,0.00016298,2]
[361723552,1747729832936,-151.0,0.00016298,2]
[361723553,1747729832949,-151.0,0.00016298,2]
[361723554,1747729832958,-151.0,0.00016298,2]
[361723555,1747729832969,-151.0,0.00016298,2]
[361723556,1747729832978,-151.0,0.00016298,2]
[361723557,1747729832989,-151.0,0.00016298,2]
[361723558,1747729832999,-151.0,0.00016298,2]
[361723559,1747729833009,-737.969004,0.00016299,2]
[361723560,1747729833019,-737.969004,0.00016299,2]
[361723561,1747729833029,-737.969004,0.00016299,2]
[361723562,1747729833039,-737.969004,0.00016299,2]
[361723563,1747729833048,-151.0,0.00016299,2]
[361723564,1747729833058,-151.0,0.00016299,2]
[361723565,1747729833068,-151.0,0.00016299,2]
[361723566,1747729833078,-151.0,0.00016299,2]
[361723567,1747729833087,-151.0,0.00016299,2]
[361723568,1747729833097,-151.0,0.00016299,2]
[361723569,1747729833107,-151.0,0.00016299,2]
[361723570,1747729833116,-151.0,0.00016299,2]
[361723571,1747729833126,-221.347616,0.00016299,2]
[361723572,1747729833135,-500.0,0.00016299,2]
[361723573,1747729833145,-500.0,0.00016299,2]
[361723574,1747729833155,-500.0,0.00016299,2]
[361723575,1747729833165,-500.0,0.00016299,2]
[361723576,1747729833175,-500.0,0.00016299,2]
[361723577,1747729833185,-605.91830848,0.00016299,2]
[361723578,1747729833194,-500.0,0.00016299,2]
[361723579,1747729833204,-500.0,0.00016299,2]
[361723580,1747729833213,-488.63819621,0.00016299,2]
[361723581,1747729833223,-500.0,0.00016299,2]
[361723583,1747729833232,-500.0,0.00016299,2]
[361723584,1747729833242,-151.0,0.00016299,2]
[361723585,1747729833251,-500.0,0.00016299,2]
[361723586,1747729833260,-151.0,0.00016299,2]
[361723587,1747729833269,-151.0,0.00016299,2]
[361723588,1747729833279,-151.0,0.00016299,2]
[361723590,1747729833288,-151.0,0.00016299,2]
[361723592,1747729833298,-151.0,0.00016299,2]
[361723593,1747729833307,-151.0,0.00016299,2]
[361723594,1747729833316,-151.0,0.00016299,2]
[361723595,1747729833325,-151.0,0.00016299,2]
[361723596,1747729833335,-151.0,0.00016299,2]
[361723597,1747729833345,-151.0,0.00016299,2]
[361723598,1747729833355,-151.0,0.00016299,2]
[361723599,1747729833365,-19093.71389221,0.000163,2]
[361723600,1747729833386,-86352.91350857,0.000163,2]
[361723601,1747729833395,-737.969004,0.000163,2]
[361723602,1747729833405,-737.969004,0.000163,2]
[361723603,1747729833414,-151.0,0.000163,2]
[361723604,1747729833425,-151.0,0.000163,2]
[361723605,1747729833435,-151.0,0.000163,2]
[361723606,1747729833446,-151.0,0.000163,2]
[361723607,1747729833456,-151.0,0.000163,2]
[361723608,1747729833466,-151.0,0.000163,2]
[361723609,1747729833476,-151.0,0.000163,2]
[361723610,1747729833486,-151.0,0.000163,2]
[361723611,1747729833495,-151.0,0.000163,2]
[361723612,1747729833505,-151.0,0.000163,2]
[361723613,1747729833515,-151.0,0.000163,2]
[361723614,1747729833525,-151.0,0.000163,2]
[361723615,1747729833534,-151.0,0.000163,2]
[361723616,1747729833544,-151.0,0.000163,2]
[361723617,1747729833553,-151.0,0.000163,2]
[361723618,1747729833563,-278.652756,0.000163,2]
[361723619,1747729833573,-1539.44756,0.000163,2]
[361723620,1747729833583,-1539.44756,0.000163,2]
[361723621,1747729833593,-151.0,0.000163,2]
[361723622,1747729833603,-1143.31588988,0.00016329,2]
[361723623,1747729833613,-1143.31588988,0.00016373,2]
[361723624,1747729833623,-1200.0,0.00016409,2]
[361723625,1747729833633,-853.389444,0.00016425,2]
[361723626,1747729833643,-324.12425,0.00016433,2]
[361723627,1747729833653,-324.12425,0.00016433,2]
[361723628,1747729833663,-324.12425,0.00016433,2]
[361723629,1747729833673,-324.12425,0.00016433,2]
[361723630,1747729833684,-197.626826,0.00016434,2]
[361723631,1747729833694,-197.626826,0.00016434,2]
[361723632,1747729833703,-197.626826,0.00016434,2]
[361723633,1747729833713,-197.626826,0.00016434,2]
[361723634,1747729833723,-197.626826,0.00016434,2]
[361723635,1747729833733,-197.626826,0.00016434,2]
[361723636,1747729833743,-151.0,0.00016434,2]
[361723637,1747729833753,-151.0,0.00016434,2]
[361723638,1747729833764,-151.0,0.00016434,2]
[361723639,1747729833773,-151.0,0.00016434,2]
[361723640,1747729833783,-151.0,0.00016434,2]
[361723641,1747729833793,-3107.016521,0.00016434,2]
[361723642,1747729833802,-3107.016521,0.00016434,2]
[361723643,1747729833812,-3107.016521,0.00016434,2]
[361723644,1747729833822,-3107.016521,0.00016434,2]
[361723645,1747729833831,-3107.016521,0.00016434,2]
[361723646,1747729833841,-3107.016521,0.00016434,2]
[361723647,1747729833851,-151.0,0.00016434,2]
[361723648,1747729833861,-205.83323423,0.00016435,2]
[361723649,1747729833871,-151.0,0.00016435,2]
[361723650,1747729833880,-151.0,0.00016435,2]
[361723651,1747729833891,-151.0,0.00016435,2]
[361723652,1747729833900,-151.0,0.00016435,2]
[361723653,1747729833910,-151.0,0.00016435,2]
[361723654,1747729833922,-151.0,0.00016435,2]
[361723655,1747729833931,-151.0,0.00016435,2]
[361723656,1747729833943,-151.0,0.00016435,2]
[361723657,1747729833953,-151.0,0.00016436,2]
[361723658,1747729833963,-151.0,0.00016436,2]
[361723659,1747729833973,-151.0,0.00016436,2]
[361723660,1747729833982,-1026.893229,0.00016436,2]
[361723661,1747729833993,-1026.893229,0.00016436,2]
[361723662,1747729834004,-151.0,0.00016436,2]
[361723663,1747729834014,-151.0,0.00016436,2]
[361723664,1747729834026,-249.131973,0.00016436,2]
[361723665,1747729834036,-249.131973,0.00016436,2]
[361723666,1747729834046,-151.0,0.00016436,2]
[361723667,1747729834056,-304.342477,0.00016437,2]
[361723668,1747729834066,-304.342477,0.00016437,2]
[361723669,1747729834076,-151.0,0.00016437,2]
[361723670,1747729834086,-324.12425,0.00016437,2]
[361723671,1747729834095,-324.12425,0.00016437,2]
[361723672,1747729834105,-270.979252,0.00016437,2]
[361723673,1747729834115,-151.0,0.00016437,2]
[361723674,1747729834125,-151.0,0.00016437,2]
[361723675,1747729834135,-151.0,0.00016437,2]
[361723676,1747729834144,-151.0,0.00016437,2]
[361723677,1747729834153,-151.0,0.00016437,2]
[361723678,1747729834163,-151.0,0.00016437,2]
[361723679,1747729834175,-1026.893229,0.00016437,2]
[361723680,1747729834184,-228.241496,0.00016437,2]
[361723681,1747729834194,-151.0,0.00016437,2]
[361723682,1747729834204,-151.0,0.00016437,2]
[361723683,1747729834214,-151.0,0.00016437,2]
[361723684,1747729834224,-1026.893229,0.00016437,2]
[361723685,1747729834234,-151.0,0.00016437,2]
[361723686,1747729834243,-151.0,0.00016437,2]
[361723687,1747729834253,-197.626826,0.00016437,2]
[361723688,1747729834262,-197.626826,0.00016437,2]
[361723689,1747729834271,-151.0,0.00016437,2]
[361723690,1747729834280,-249.131973,0.00016437,2]